fUST/lending_fUST_20250828
["ID","MTS","AMOUNT","RATE_DAILY","PERIOD"]
[381704825,1756315874703,-480.0,0.00022465,2]
[381704826,1756315874712,-480.0,0.00022465,2]
[381704827,1756315874722,-1566.48,0.00022465,2]
[381704828,1756315874732,-480.0,0.00022465,2]
[381704829,1756315874741,-480.0,0.00022465,2]
[381704830,1756315874750,-480.0,0.00022465,2]
[381704831,1756315874760,-480.0,0.00022465,2]
[381704832,1756315874769,-480.0,0.00022465,2]
[381704833,1756315874779,-480.0,0.00022465,2]
[381704834,1756315874788,-703.96,0.00022465,2]
[381704835,1756315874797,-480.0,0.00022465,2]
[381704836,1756315874807,-480.0,0.00022465,2]
[381704837,1756315874817,-480.0,0.00022465,2]
[381704838,1756315874826,-717.25,0.00022465,2]
[381704839,1756315874843,-480.0,0.00022465,2]
[381704840,1756315874862,-480.0,0.00022465,2]
[381704841,1756315874879,-480.0,0.00022465,2]
[381704842,1756315874898,-480.0,0.00022465,2]
[381704843,1756315874917,-766.14,0.00022465,2]
[381704844,1756315874935,-480.0,0.00022465,2]
[381704845,1756315874952,-480.0,0.00022465,2]
[381704846,1756315874970,-1026.52,0.00022465,2]
[381704847,1756315874985,-480.0,0.00022465,2]
[381704848,1756315875001,-240.33078166,0.00022465,2]
[381704849,1756315875019,-480.0,0.00022465,2]
[381704850,1756315875039,-480.0,0.00022465,2]
[381704851,1756315875054,-413.34920479,0.00022465,2]
[381704852,1756315875075,-480.0,0.00022465,2]
[381704853,1756315875091,-897.12,0.00022465,2]
[381704854,1756315875108,-480.0,0.00022465,2]
[381704855,1756315875123,-480.0,0.00022465,2]
[381704856,1756315875140,-480.0,0.00022465,2]
[381704857,1756315875155,-496.15,0.00022465,2]
[381704858,1756315875170,-480.0,0.00022465,2]
[381704859,1756315875185,-480.0,0.00022465,2]
[381704860,1756315875200,-839.95,0.00022465,2]
[381704861,1756315875215,-480.0,0.00022465,2]
[381704862,1756315875229,-510.18,0.00022465,2]
[381704863,1756315875244,-480.0,0.00022465,2]
[381704864,1756315875258,-4321.67,0.00022465,2]
[381704865,1756315875272,-480.0,0.00022465,2]
[381704866,1756315875287,-480.0,0.00022465,2]
[381704867,1756315875301,-748.41,0.00022465,2]
[381704868,1756315875316,-480.0,0.00022465,2]
[381704869,1756315875331,-480.0,0.00022465,2]
[381704870,1756315875346,-530.0,0.00022465,2]
[381704871,1756315875360,-194.77210445,0.00022465,2]
[381704872,1756315875375,-480.0,0.00022465,2]
[381704873,1756315875389,-480.0,0.00022465,2]
[381704874,1756315875403,-480.0,0.00022465,2]
[381704875,1756315875418,-480.0,0.00022465,2]
[381704876,1756315875433,-497.55,0.00022465,2]
[381704877,1756315875448,-487.03,0.00022465,2]
[381704878,1756315875463,-480.0,0.00022465,2]
[381704879,1756315875478,-480.0,0.00022465,2]
[381704880,1756315875492,-480.0,0.00022465,2]
[381704881,1756315875507,-480.0,0.00022465,2]
[381704882,1756315875522,-480.0,0.00022465,2]
[381704883,1756315875536,-831.39,0.00022465,2]
[381704884,1756315875552,-480.0,0.00022465,2]
[381704885,1756315875567,-480.0,0.00022465,2]
[381704886,1756315875583,-480.0,0.00022465,2]
[381704887,1756315875599,-524.19,0.00022465,2]
[381704888,1756315875614,-1177.95,0.00022465,2]
[381704889,1756315875629,-256.1582459,0.00022465,2]
[381704890,1756315875644,-480.0,0.00022465,2]
[381704891,1756315875660,-480.0,0.00022465,2]
[381704892,1756315875675,-480.0,0.00022465,2]
[381704893,1756315875690,-480.0,0.00022465,2]
[381704894,1756315875705,-480.0,0.00022465,2]
[381704895,1756315875720,-480.0,0.00022465,2]
[381704896,1756315875734,-480.0,0.00022465,2]
[381704897,1756315875750,-480.0,0.00022465,2]
[381704898,1756315875768,-480.0,0.00022465,2]
[381704899,1756315875783,-480.0,0.00022465,2]
[381704900,1756315875796,-612.8,0.00022465,2]
[381704901,1756315875812,-480.0,0.00022465,2]
[381704902,1756315875826,-480.0,0.00022465,2]
[381704903,1756315875840,-588.21,0.00022465,2]
[381704904,1756315875855,-1709.99,0.00022465,2]
[381704905,1756315875869,-480.0,0.00022465,2]
[381704906,1756315875884,-532.52,0.00022465,2]
[381704907,1756315875898,-480.0,0.00022465,2]
[381704908,1756315875913,-480.0,0.00022465,2]
[381704909,1756315875928,-480.0,0.00022465,2]
[381704910,1756315875943,-480.0,0.00022465,2]
[381704911,1756315875958,-907.14,0.00022465,2]
[381704912,1756315875972,-480.0,0.00022465,2]
[381704913,1756315875988,-200.04554455,0.00022465,2]
[381704914,1756315876003,-294.07531134,0.00022465,2]
[381704915,1756315876019,-1087.58,0.00022465,2]
[381704916,1756315876033,-480.0,0.00022465,2]
[381704917,1756315876048,-615.39,0.00022465,2]
[381704918,1756315876063,-480.0,0.00022465,2]
[381704919,1756315876077,-480.0,0.00022465,2]
[381704920,1756315876092,-822.31,0.00022465,2]
[381704921,1756315876107,-501.15,0.00022465,2]
[381704922,1756315876121,-480.0,0.00022465,2]
[381704923,1756315876136,-227.8241137,0.00022465,2]
[381704924,1756315876151,-480.0,0.00022465,2]
[381704925,1756315876165,-480.0,0.00022465,2]
[381704926,1756315876180,-480.0,0.00022465,2]
[381704927,1756315876194,-480.0,0.00022465,2]
[381704928,1756315876208,-480.0,0.00022465,2]
[381704929,1756315876223,-480.0,0.00022465,2]
[381704930,1756315876237,-480.0,0.00022465,2]
[381704931,1756315876252,-480.0,0.00022465,2]
[381704932,1756315876266,-480.0,0.00022465,2]
[381704933,1756315876452,-513.13,0.00022465,2]
[381704934,1756315876462,-329.19338478,0.00022465,2]
[381704935,1756315876472,-233.1895123,0.00022465,2]
[381704936,1756315876481,-480.0,0.00022465,2]
[381704937,1756315876491,-7578.13,0.00022465,2]
[381704938,1756315876500,-767.09,0.00022465,2]
[381704939,1756315876510,-480.0,0.00022465,2]
[381704940,1756315876522,-480.0,0.00022465,2]
[381704941,1756315876532,-1421.98,0.00022465,2]
[381704942,1756315876541,-480.0,0.00022465,2]
[381704943,1756315876550,-480.0,0.00022465,2]
[381704944,1756315876560,-480.0,0.00022465,2]
[381704945,1756315876571,-480.0,0.00022465,2]
[381704946,1756315876581,-480.0,0.00022465,2]
[381704947,1756315876595,-480.0,0.00022465,2]
[381704948,1756315876605,-564.27,0.00022465,2]
[381704949,1756315876615,-480.0,0.00022465,2]
[381704950,1756315876624,-480.0,0.00022465,2]
[381704951,1756315876635,-480.0,0.00022465,2]
[381704952,1756315876644,-480.0,0.00022465,2]
[381704953,1756315876654,-480.0,0.00022465,2]
[381704954,1756315876664,-480.0,0.00022465,2]
[381704955,1756315876674,-480.0,0.00022465,2]
[381704956,1756315876683,-545.55,0.00022465,2]
[381704957,1756315876692,-480.0,0.00022465,2]
[381704958,1756315876701,-480.0,0.00022465,2]
[381704959,1756315876711,-480.0,0.00022465,2]
[381704960,1756315876720,-1006.49,0.00022465,2]
[381704961,1756315876730,-480.0,0.00022465,2]
[381704962,1756315876739,-480.0,0.00022465,2]
[381704963,1756315876749,-480.0,0.00022465,2]
[381704964,1756315876758,-480.0,0.00022465,2]
[381704965,1756315876767,-480.0,0.00022465,2]
[381704966,1756315876777,-480.0,0.00022465,2]
[381704967,1756315876786,-480.0,0.00022465,2]
[381704968,1756315876796,-480.0,0.00022465,2]
[381704969,1756315876805,-602.91,0.00022465,2]
[381704970,1756315876816,-480.0,0.00022465,2]
[381704971,1756315876826,-480.0,0.00022465,2]
[381704972,1756315876836,-480.0,0.00022465,2]
[381704973,1756315876845,-480.0,0.00022465,2]
[381704974,1756315876855,-480.0,0.00022465,2]
[381704975,1756315876864,-480.0,0.00022465,2]
[381704976,1756315876874,-480.0,0.00022465,2]
[381704977,1756315876883,-480.0,0.00022465,2]
[381704978,1756315876893,-596.82,0.00022465,2]
[381704979,1756315876902,-575.39,0.00022465,2]
[381704980,1756315876911,-480.0,0.00022465,2]
[381704981,1756315876921,-480.0,0.00022465,2]
[381704982,1756315876930,-480.0,0.00022465,2]
[381704983,1756315876939,-480.0,0.00022465,2]
[381704984,1756315876949,-389.39973075,0.00022465,2]
[381704985,1756315876958,-480.0,0.00022465,2]
[381704986,1756315876967,-480.0,0.00022465,2]
[381704987,1756315876977,-480.0,0.00022465,2]
[381704988,1756315876986,-506.47,0.00022465,2]
[381704989,1756315876996,-480.0,0.00022465,2]
[381704990,1756315877005,-635.3,0.00022465,2]
[381704991,1756315877014,-480.0,0.00022465,2]
[381704992,1756315877024,-1605.48,0.00022465,2]
[381704993,1756315877033,-984.43,0.00022465,2]
[381704994,1756315877042,-480.0,0.00022465,2]
[381704995,1756315877052,-480.0,0.00022465,2]
[381704996,1756315877062,-496.43,0.00022465,2]
[381704997,1756315877071,-480.0,0.00022465,2]
[381704998,1756315877081,-480.0,0.00022465,2]
[381704999,1756315877090,-480.0,0.00022465,2]
[381705000,1756315877099,-480.0,0.00022465,2]
[381705001,1756315877109,-708.97,0.00022465,2]
[381705002,1756315877118,-480.0,0.00022465,2]
[381705003,1756315877127,-458.45181433,0.00022465,2]
[381705004,1756315877136,-480.0,0.00022465,2]
[381705005,1756315877146,-480.0,0.00022465,2]
[381705006,1756315877155,-480.0,0.00022465,2]
[381705007,1756315877165,-481.99552742,0.00022465,2]
[381705008,1756315877175,-517.74,0.00022465,2]
[381705009,1756315877184,-480.0,0.00022465,2]
[381705010,1756315877193,-480.0,0.00022465,2]
[381705011,1756315877203,-500.0,0.00022465,2]
[381705012,1756315877212,-480.0,0.00022465,2]
[381705013,1756315877221,-480.0,0.00022465,2]
[381705014,1756315877231,-636.21,0.00022465,2]
[381705015,1756315877241,-480.0,0.00022465,2]
[381705016,1756315877251,-480.0,0.00022465,2]
[381705017,1756315877260,-735.93,0.00022465,2]
[381705018,1756315877269,-480.0,0.00022465,2]
[381705019,1756315877279,-480.0,0.00022465,2]
[381705020,1756315877289,-480.0,0.00022465,2]
[381705021,1756315877298,-551.29,0.00022465,2]
[381705022,1756315877307,-530.01,0.00022465,2]
[381705023,1756315877317,-480.0,0.00022465,2]
[381705024,1756315877327,-480.0,0.00022465,2]
[381705025,1756315877336,-480.0,0.00022465,2]
[381705026,1756315877345,-749.97,0.00022465,2]
[381705027,1756315877355,-480.0,0.00022465,2]
[381705028,1756315877364,-828.83,0.00022465,2]
[381705029,1756315877374,-709.76,0.00022465,2]
[381705030,1756315877383,-646.17,0.00022465,2]
[381705031,1756315877393,-480.0,0.00022465,2]
[381705032,1756315877402,-1357.85,0.00022465,2]
[381705033,1756315877412,-480.0,0.00022465,2]
[381705034,1756315877421,-1059.71,0.00022465,2]
[381705035,1756315877431,-480.0,0.00022465,2]
[381705036,1756315877440,-1042.56,0.00022465,2]
[381705037,1756315877450,-480.0,0.00022465,2]
[381705038,1756315877459,-669.54,0.00022465,2]
[381705039,1756315877468,-480.0,0.00022465,2]
[381705040,1756315877478,-480.0,0.00022465,2]
[381705041,1756315877487,-480.0,0.00022465,2]
[381705042,1756315877497,-480.0,0.00022465,2]
[381705043,1756315877506,-480.0,0.00022465,2]
[381705044,1756315877516,-480.0,0.00022465,2]
[381705045,1756315877525,-707.48,0.00022465,2]
[381705046,1756315877535,-550.53,0.00022465,2]
[381705047,1756315877544,-480.0,0.00022465,2]
[381705048,1756315877554,-1356.93,0.00022465,2]
[381705049,1756315877565,-480.0,0.00022465,2]
[381705050,1756315877574,-754.65,0.00022465,2]
[381705051,1756315877585,-197.31731683,0.00022465,2]
[381705052,1756315877596,-491.88399836,0.00022465,2]
[381705053,1756315877605,-480.0,0.00022465,2]
[381705054,1756315877615,-480.0,0.00022465,2]
[381705055,1756315877624,-367.14940187,0.00022465,2]
[381705056,1756315877635,-480.0,0.00022465,2]
[381705057,1756315877645,-480.0,0.00022465,2]
[381705058,1756315877654,-480.0,0.00022465,2]
[381705059,1756315877666,-480.0,0.00022465,2]
[381705060,1756315877676,-480.0,0.00022465,2]
[381705061,1756315877687,-480.0,0.00022465,2]
[381705062,1756315877696,-833.89,0.00022465,2]
[381705063,1756315877706,-1635.95,0.00022465,2]
[381705064,1756315877715,-480.0,0.00022465,2]
[381705065,1756315877725,-616.04,0.00022465,2]
[381705066,1756315877735,-480.0,0.00022465,2]
[381705067,1756315877744,-1308.59,0.00022465,2]
[381705068,1756315877753,-833.28,0.00022465,2]
[381705069,1756315877763,-480.0,0.00022465,2]
[381705070,1756315877772,-480.0,0.00022465,2]
[381705071,1756315877782,-480.0,0.00022465,2]
[381705072,1756315877791,-1328.04,0.00022465,2]
[381705073,1756315877801,-462.35650105,0.00022465,2]
[381705074,1756315877810,-491.24,0.00022465,2]
[381705075,1756315877821,-6376.86,0.00022465,2]
[381705076,1756315877830,-480.0,0.00022465,2]
[381705077,1756315877840,-480.0,0.00022465,2]
[381705078,1756315877849,-480.0,0.00022465,2]
[381705079,1756315877859,-1366.07,0.00022465,2]
[381705080,1756315877869,-480.0,0.00022465,2]
[381705081,1756315877878,-480.0,0.00022465,2]
[381705082,1756315877887,-404.95939314,0.00022465,2]
[381705083,1756315877897,-811.3,0.00022465,2]
[381705084,1756315877907,-480.0,0.00022465,2]
[381705085,1756315877916,-480.0,0.00022465,2]
[381705086,1756315877926,-480.0,0.00022465,2]
[381705087,1756315877935,-1738.63,0.00022465,2]
[381705088,1756315877944,-597.4,0.00022465,2]
[381705089,1756315877954,-480.0,0.00022465,2]
[381705090,1756315877964,-1230.54,0.00022465,2]
[381705091,1756315877973,-5290.09,0.00022465,2]
[381705092,1756315877983,-480.0,0.00022465,2]
[381705093,1756315877995,-774.22,0.00022465,2]
[381705094,1756315878006,-681.82,0.00022465,2]
[381705095,1756315878016,-480.0,0.00022465,2]
[381705096,1756315878026,-683.68,0.00022465,2]
[381705097,1756315878035,-864.24,0.00022465,2]
[381705098,1756315878045,-1277.71,0.00022465,2]
[381705099,1756315878056,-480.0,0.00022465,2]
[381705100,1756315878068,-480.0,0.00022465,2]
[381705101,1756315878078,-1562.72,0.00022465,2]
[381705102,1756315878088,-480.0,0.00022465,2]
[381705103,1756315878099,-480.0,0.00022465,2]
[381705104,1756315878109,-480.0,0.00022465,2]
[381705105,1756315878119,-480.0,0.00022465,2]
[381705106,1756315878129,-480.0,0.00022465,2]
[381705107,1756315878139,-1230.71,0.00022465,2]
[381705108,1756315878149,-480.0,0.00022465,2]
[381705109,1756315878159,-586.58,0.00022465,2]
[381705110,1756315878169,-898.6,0.00022465,2]
[381705111,1756315878178,-480.0,0.00022465,2]
[381705112,1756315878189,-480.0,0.00022465,2]
[381705113,1756315878199,-480.0,0.00022465,2]
[381705114,1756315878209,-480.0,0.00022465,2]
[381705115,1756315878220,-682.12,0.00022465,2]
[381705116,1756315878229,-480.0,0.00022465,2]
[381705117,1756315878238,-2720.08,0.00022465,2]
[381705118,1756315878248,-1400.27,0.00022465,2]
[381705119,1756315878258,-480.0,0.00022465,2]
[381705120,1756315878268,-483.70498111,0.00022465,2]
[381705121,1756315878277,-480.0,0.00022465,2]
[381705122,1756315878287,-480.0,0.00022465,2]
[381705123,1756315878297,-1633.28,0.00022465,2]
[381705124,1756315878306,-480.0,0.00022465,2]
[381705125,1756315878318,-984.77,0.00022465,2]
[381705126,1756315878328,-840.57,0.00022465,2]
[381705127,1756315878338,-481.43916753,0.00022465,2]
[381705128,1756315878348,-480.0,0.00022465,2]
[381705129,1756315878358,-554.05,0.00022465,2]
[381705130,1756315878367,-713.12,0.00022465,2]
[381705131,1756315878377,-2050.68,0.00022465,2]
[381705132,1756315878387,-1927.62,0.00022465,2]
[381705133,1756315878397,-480.0,0.00022465,2]
[381705134,1756315878407,-480.0,0.00022465,2]
[381705135,1756315878417,-484.00405728,0.00022465,2]
[381705136,1756315878427,-480.0,0.00022465,2]
[381705137,1756315878437,-793.66,0.00022465,2]
[381705138,1756315878447,-480.0,0.00022465,2]
[381705139,1756315878457,-531.54,0.00022465,2]
[381705140,1756315878466,-480.0,0.00022465,2]
[381705141,1756315878476,-480.0,0.00022465,2]
[381705142,1756315878486,-699.19,0.00022465,2]
[381705143,1756315878496,-480.0,0.00022465,2]
[381705144,1756315878506,-480.0,0.00022465,2]
[381705145,1756315878516,-480.0,0.00022465,2]
[381705146,1756315878526,-480.0,0.00022465,2]
[381705147,1756315878667,-480.0,0.00022465,2]
[381705148,1756315878675,-480.0,0.00022465,2]
[381705149,1756315878682,-480.0,0.00022465,2]
[381705150,1756315878689,-525.84,0.00022465,2]
[381705151,1756315878698,-480.0,0.00022465,2]
[381705152,1756315878706,-708.0,0.00022465,2]
[381705153,1756315878715,-480.0,0.00022465,2]
[381705154,1756315878724,-4922.48,0.00022465,2]
[381705155,1756315878734,-480.0,0.00022465,2]
[381705156,1756315878744,-1873.21,0.00022465,2]
[381705157,1756315878754,-480.0,0.00022465,2]
[381705158,1756315878765,-480.0,0.00022465,2]
[381705159,1756315878775,-480.0,0.00022465,2]
[381705160,1756315878784,-480.0,0.00022465,2]
[381705161,1756315878793,-2273.72,0.00022465,2]
[381705162,1756315878803,-480.0,0.00022465,2]
[381705163,1756315878814,-542.01,0.00022465,2]
[381705164,1756315878823,-480.0,0.00022465,2]
[381705165,1756315878833,-480.0,0.00022465,2]
[381705166,1756315878842,-480.0,0.00022465,2]
[381705167,1756315878851,-480.0,0.00022465,2]
[381705168,1756315878862,-480.0,0.00022465,2]
[381705169,1756315878871,-480.0,0.00022465,2]
[381705170,1756315878881,-620.03,0.00022465,2]
[381705171,1756315878890,-500.0,0.00022465,2]
[381705172,1756315878900,-480.0,0.00022465,2]
[381705173,1756315878910,-480.0,0.00022465,2]
[381705174,1756315878919,-3730.3,0.00022465,2]
[381705175,1756315878929,-480.0,0.00022465,2]
[381705176,1756315878939,-1757.83,0.00022465,2]
[381705177,1756315878949,-480.0,0.00022465,2]
[381705178,1756315878960,-480.0,0.00022465,2]
[381705179,1756315878970,-480.0,0.00022465,2]
[381705180,1756315878980,-480.0,0.00022465,2]
[381705181,1756315878992,-4335.47,0.00022465,2]
[381705182,1756315879005,-480.0,0.00022465,2]
[381705183,1756315879015,-702.62,0.00022465,2]
[381705184,1756315879026,-1127.47,0.00022465,2]
[381705185,1756315879036,-1061.58,0.00022465,2]
[381705186,1756315879045,-653.99,0.00022465,2]
[381705187,1756315879055,-361.98879867,0.00022465,2]
[381705188,1756315879067,-480.93,0.00022465,2]
[381705189,1756315879077,-4789.45,0.00022465,2]
[381705190,1756315879087,-482.80836877,0.00022465,2]
[381705191,1756315879097,-482.89680585,0.00022465,2]
[381705192,1756315879107,-1335.71,0.00022465,2]
[381705193,1756315879117,-480.0,0.00022465,2]
[381705194,1756315879127,-2106.23,0.00022465,2]
[381705195,1756315879137,-480.0,0.00022465,2]
[381705196,1756315879147,-480.0,0.00022465,2]
[381705197,1756315879156,-480.0,0.00022465,2]
[381705198,1756315879165,-173.59968375,0.00022465,2]
[381705199,1756315879175,-4610.0,0.00022465,2]
[381705200,1756315879186,-480.0,0.00022465,2]
[381705201,1756315879196,-480.0,0.00022465,2]
[381705202,1756315879206,-480.0,0.00022465,2]
[381705203,1756315879217,-480.0,0.00022465,2]
[381705204,1756315879227,-480.0,0.00022465,2]
[381705205,1756315879237,-195.24168607,0.00022465,2]
[381705206,1756315879247,-594.54,0.00022465,2]
[381705207,1756315879257,-1891.73,0.00022465,2]
[381705208,1756315879267,-1424.24,0.00022465,2]
[381705209,1756315879276,-480.0,0.00022465,2]
[381705210,1756315879286,-480.0,0.00022465,2]
[381705211,1756315879295,-480.0,0.00022465,2]
[381705212,1756315879305,-490.12,0.00022465,2]
[381705213,1756315879315,-480.0,0.00022465,2]
[381705214,1756315879325,-480.0,0.00022465,2]
[381705215,1756315879334,-2437.05,0.00022465,2]
[381705216,1756315879344,-480.0,0.00022465,2]
[381705217,1756315879354,-480.0,0.00022465,2]
[381705218,1756315879364,-480.0,0.00022465,2]
[381705219,1756315879373,-480.0,0.00022465,2]
[381705220,1756315879383,-480.0,0.00022465,2]
[381705221,1756315879394,-480.0,0.00022465,2]
[381705222,1756315879404,-632.92,0.00022465,2]
[381705223,1756315879414,-480.0,0.00022465,2]
[381705224,1756315879424,-480.0,0.00022465,2]
[381705225,1756315879434,-1677.51,0.00022465,2]
[381705226,1756315879444,-562.31,0.00022465,2]
[381705227,1756315879454,-480.0,0.00022465,2]
[381705228,1756315879463,-480.0,0.00022465,2]
[381705229,1756315879473,-480.0,0.00022465,2]
[381705230,1756315879483,-500.19,0.00022465,2]
[381705231,1756315879493,-480.0,0.00022465,2]
[381705232,1756315879502,-532.28,0.00022465,2]
[381705233,1756315879512,-523.31,0.00022465,2]
[381705234,1756315879521,-480.0,0.00022465,2]
[381705235,1756315879531,-480.0,0.00022465,2]
[381705236,1756315879541,-480.0,0.00022465,2]
[381705237,1756315879550,-505.61,0.00022465,2]
[381705238,1756315879560,-2955.96,0.00022465,2]
[381705239,1756315879571,-874.64,0.00022465,2]
[381705240,1756315879581,-593.0,0.00022465,2]
[381705241,1756315879594,-480.0,0.00022465,2]
[381705242,1756315879604,-480.0,0.00022465,2]
[381705243,1756315879613,-480.0,0.00022465,2]
[381705244,1756315879623,-525.49,0.00022465,2]
[381705245,1756315879632,-480.0,0.00022465,2]
[381705246,1756315879642,-480.0,0.00022465,2]
[381705247,1756315879652,-542.14,0.00022465,2]
[381705248,1756315879661,-480.0,0.00022465,2]
[381705249,1756315879670,-1307.67,0.00022465,2]
[381705250,1756315879680,-3139.91,0.00022465,2]
[381705251,1756315879690,-487.85,0.00022465,2]
[381705252,1756315879699,-790.4,0.00022465,2]
[381705253,1756315879708,-480.0,0.00022465,2]
[381705254,1756315879718,-673.27,0.00022465,2]
[381705255,1756315879728,-480.0,0.00022465,2]
[381705256,1756315879737,-480.0,0.00022465,2]
[381705257,1756315879748,-480.0,0.00022465,2]
[381705258,1756315879757,-480.0,0.00022465,2]
[381705259,1756315879766,-490.27,0.00022465,2]
[381705260,1756315879776,-1507.95,0.00022465,2]
[381705261,1756315879785,-480.0,0.00022465,2]
[381705262,1756315879795,-1488.87,0.00022465,2]
[381705263,1756315879806,-704.88,0.00022465,2]
[381705264,1756315879816,-480.0,0.00022465,2]
[381705265,1756315879825,-504.58,0.00022465,2]
[381705266,1756315879834,-1155.37,0.00022465,2]
[381705267,1756315879844,-480.0,0.00022465,2]
[381705268,1756315879853,-480.0,0.00022465,2]
[381705269,1756315879863,-480.0,0.00022465,2]
[381705270,1756315879875,-1124.84,0.00022465,2]
[381705271,1756315879884,-480.0,0.00022465,2]
[381705272,1756315879895,-480.0,0.00022465,2]
[381705273,1756315879904,-3001.81,0.00022465,2]
[381705274,1756315879914,-480.0,0.00022465,2]
[381705275,1756315879924,-480.0,0.00022465,2]
[381705276,1756315879933,-852.13,0.00022465,2]
[381705277,1756315879943,-480.0,0.00022465,2]
[381705278,1756315879952,-808.37,0.00022465,2]
[381705279,1756315879962,-480.0,0.00022465,2]
[381705280,1756315879972,-845.32,0.00022465,2]
[381705281,1756315879981,-1712.6,0.00022465,2]
[381705282,1756315879990,-1056.32,0.00022465,2]
[381705283,1756315880000,-1736.27,0.00022465,2]
[381705284,1756315880010,-480.0,0.00022465,2]
[381705285,1756315880020,-480.0,0.00022465,2]
[381705286,1756315880029,-904.87,0.00022465,2]
[381705287,1756315880039,-480.0,0.00022465,2]
[381705288,1756315880049,-480.0,0.00022465,2]
[381705289,1756315880058,-809.45,0.00022465,2]
[381705290,1756315880067,-480.0,0.00022465,2]
[381705291,1756315880076,-480.0,0.00022465,2]
[381705292,1756315880086,-480.0,0.00022465,2]
[381705293,1756315880095,-480.0,0.00022465,2]
[381705294,1756315880105,-480.0,0.00022465,2]
[381705295,1756315880114,-480.0,0.00022465,2]
[381705296,1756315880124,-480.0,0.00022465,2]
[381705297,1756315880133,-1631.08,0.00022465,2]
[381705298,1756315880143,-480.0,0.00022465,2]
[381705299,1756315880152,-480.0,0.00022465,2]
[381705300,1756315880162,-480.0,0.00022465,2]
[381705301,1756315880172,-480.0,0.00022465,2]
[381705302,1756315880181,-480.0,0.00022465,2]
[381705303,1756315880190,-480.0,0.00022465,2]
[381705304,1756315880199,-250.0,0.00022466,2]
[381705305,1756315880210,-1500.0,0.00022468,2]
[381705306,1756315880220,-687.03738315,0.00022468,2]
[381705307,1756315880229,-500.0,0.00022468,2]
[381705308,1756315880239,-1500.0,0.00022468,2]
[381705309,1756315880248,-1500.0,0.00022468,2]
[381705310,1756315880257,-1500.0,0.00022468,2]
[381705311,1756315880267,-1500.0,0.00022468,2]
[381705312,1756315880278,-1500.0,0.00022468,2]
[381705313,1756315880288,-1500.0,0.00022468,2]
[381705314,1756315880297,-1000.0,0.00022468,2]
[381705315,1756315880307,-1500.0,0.00022468,2]
[381705316,1756315880316,-1500.0,0.00022468,2]
[381705317,1756315880326,-1500.0,0.00022468,2]
[381705318,1756315880336,-1500.0,0.00022468,2]
[381705319,1756315880346,-1500.0,0.00022468,2]
[381705320,1756315880355,-1112.0,0.00022469,2]
[381705321,1756315880365,-212.56052203,0.00022469,2]
[381705322,1756315880375,-153.55704012,0.00022469,2]
[381705323,1756315880386,-226.9344424,0.00022469,2]
[381705324,1756315880395,-500.0,0.00022469,2]